fUST/lending_fUST_20240921
["ID","MTS","AMOUNT","RATE_DAILY","PERIOD"]
[338830458,1726930260899,-484.0,0.00015926,2]
[338830459,1726930260908,-484.0,0.00015926,2]
[338830460,1726930260918,-484.0,0.00015926,2]
[338830461,1726930260927,-484.0,0.00015926,2]
[338830462,1726930260936,-484.0,0.00015926,2]
[338830463,1726930260945,-484.0,0.00015926,2]
[338830464,1726930260954,-484.0,0.00015926,2]
[338830465,1726930260964,-484.0,0.00015926,2]
[338830466,1726930260973,-484.0,0.00015926,2]
[338830467,1726930260982,-484.0,0.00015926,2]
[338830468,1726930260991,-484.0,0.00015926,2]
[338830469,1726930261000,-484.0,0.00015926,2]
[338830470,1726930261009,-153.0,0.00015926,2]
[338830471,1726930261019,-153.0,0.00015926,2]
[338830472,1726930261029,-153.0,0.00015926,2]
[338830473,1726930261038,-484.0,0.00015926,2]
[338830474,1726930261048,-484.0,0.00015926,2]
[338830475,1726930261057,-484.0,0.00015926,2]
[338830476,1726930261066,-484.0,0.00015926,2]
[338830477,1726930261075,-484.0,0.00015926,2]
[338830478,1726930261084,-484.0,0.00015926,2]
[338830479,1726930261093,-484.0,0.00015926,2]
[338830480,1726930261102,-484.0,0.00015926,2]
[338830481,1726930261111,-484.0,0.00015926,2]
[338830482,1726930261121,-484.0,0.00015926,2]
[338830483,1726930261131,-484.0,0.00015926,2]
[338830484,1726930261143,-484.0,0.00015926,2]
[338830485,1726930261154,-484.0,0.00015926,2]
[338830486,1726930261163,-484.0,0.00015926,2]
[338830487,1726930261172,-153.0,0.00015926,2]
[338830488,1726930261182,-153.0,0.00015926,2]
[338830489,1726930261191,-153.0,0.00015926,2]
[338830490,1726930261203,-484.0,0.00015926,2]
[338830491,1726930261214,-484.0,0.00015926,2]
[338830492,1726930261223,-484.0,0.00015926,2]
[338830493,1726930261232,-484.0,0.00015926,2]
[338830494,1726930261242,-484.0,0.00015926,2]
[338830495,1726930261252,-484.0,0.00015926,2]
[338830496,1726930261262,-484.0,0.00015926,2]
[338830497,1726930261271,-484.0,0.00015926,2]
[338830498,1726930261280,-484.0,0.00015926,2]
[338830499,1726930261289,-484.0,0.00015926,2]
[338830500,1726930261298,-484.0,0.00015926,2]
[338830501,1726930261308,-484.0,0.00015926,2]
[338830502,1726930261317,-484.0,0.00015926,2]
[338830503,1726930261328,-484.0,0.00015926,2]
[338830504,1726930261338,-153.0,0.00015926,2]
[338830505,1726930261348,-153.0,0.00015926,2]
[338830506,1726930261359,-153.0,0.00015926,2]
[338830507,1726930261368,-484.0,0.00015926,2]
[338830508,1726930261378,-484.0,0.00015926,2]
[338830509,1726930261387,-484.0,0.00015926,2]
[338830510,1726930261398,-484.0,0.00015926,2]
[338830511,1726930261408,-484.0,0.00015926,2]
[338830512,1726930261419,-484.0,0.00015926,2]
[338830513,1726930261429,-484.0,0.00015926,2]
[338830514,1726930261439,-484.0,0.00015926,2]
[338830515,1726930261450,-484.0,0.00015926,2]
[338830516,1726930261459,-484.0,0.00015926,2]
[338830517,1726930261468,-484.0,0.00015926,2]
[338830518,1726930261478,-484.0,0.00015926,2]
[338830519,1726930261488,-484.0,0.00015926,2]
[338830520,1726930261501,-484.0,0.00015926,2]
[338830521,1726930261510,-500.0,0.00015931,2]
[338830522,1726930261520,-500.0,0.00015931,2]
[338830523,1726930261531,-500.0,0.00015931,2]
[338830524,1726930261541,-500.0,0.00015931,2]
[338830525,1726930261551,-500.0,0.00015931,2]
[338830526,1726930261559,-500.0,0.00015931,2]
[338830527,1726930261569,-500.0,0.00015931,2]
[338830528,1726930261578,-500.0,0.00015931,2]
[338830529,1726930261590,-500.0,0.00015931,2]
[338830530,1726930261599,-500.0,0.00015931,2]
[338830531,1726930261608,-500.0,0.00015931,2]
[338830532,1726930261617,-500.0,0.00015931,2]
[338830533,1726930261628,-578.2,0.00015931,2]
[338830534,1726930261637,-500.0,0.00015931,2]
[338830535,1726930261646,-500.0,0.00015931,2]
[338830536,1726930261657,-500.0,0.00015931,2]
[338830537,1726930261666,-500.0,0.00015931,2]
[338830538,1726930261676,-500.0,0.00015931,2]
[338830539,1726930261685,-500.0,0.00015931,2]
[338830540,1726930261695,-556.44,0.00015931,2]
[338830541,1726930261703,-500.0,0.00015931,2]
[338830542,1726930261713,-500.0,0.00015931,2]
[338830543,1726930261723,-500.0,0.00015931,2]
[338830544,1726930261732,-200.0,0.00015931,2]
[338830545,1726930261742,-500.0,0.00015931,2]
[338830546,1726930261751,-500.0,0.00015931,2]
[338830547,1726930261761,-500.0,0.00015931,2]
[338830548,1726930261771,-500.0,0.00015931,2]
[338830549,1726930261780,-373.9400456,0.00015931,2]
[338830550,1726930261790,-500.0,0.00015931,2]
[338830551,1726930261800,-813.69,0.00015931,2]
[338830552,1726930261809,-500.0,0.00015931,2]
[338830553,1726930261818,-500.0,0.00015931,2]
[338830554,1726930261828,-500.0,0.00015931,2]
[338830555,1726930261837,-532.09,0.00015931,2]
[338830556,1726930261847,-614.11,0.00015931,2]
[338830557,1726930261857,-500.0,0.00015931,2]
[338830558,1726930261866,-500.0,0.00015931,2]
[338830559,1726930261876,-500.0,0.00015931,2]
[338830560,1726930261885,-500.0,0.00015931,2]
[338830561,1726930261894,-500.0,0.00015931,2]
[338830562,1726930261904,-500.0,0.00015931,2]
[338830563,1726930261913,-500.0,0.00015931,2]
[338830564,1726930261922,-581.93,0.00015931,2]
[338830565,1726930261932,-607.72,0.00015931,2]
[338830566,1726930261942,-500.0,0.00015931,2]
[338830567,1726930261951,-500.0,0.00015931,2]
[338830568,1726930261960,-500.0,0.00015931,2]
[338830569,1726930261969,-626.31,0.00015931,2]
[338830570,1726930261978,-500.0,0.00015931,2]
[338830571,1726930261987,-500.0,0.00015931,2]
[338830572,1726930261996,-999.91,0.00015931,2]
[338830573,1726930262005,-500.0,0.00015931,2]
[338830574,1726930262017,-500.0,0.00015931,2]
[338830575,1726930262029,-500.0,0.00015931,2]
[338830576,1726930262039,-569.52,0.00015931,2]
[338830577,1726930262049,-529.76,0.00015931,2]
[338830578,1726930262058,-151.0,0.00015931,2]
[338830579,1726930262067,-151.0,0.00015931,2]
[338830580,1726930262076,-1057.482645,0.00015931,2]
[338830581,1726930262085,-1057.482645,0.00015931,2]
[338830582,1726930262094,-254.69851,0.00015931,2]
[338830583,1726930262103,-254.69851,0.00015931,2]
[338830584,1726930262112,-500.0,0.00015931,2]
[338830585,1726930262121,-1045.610299,0.00015931,2]
[338830586,1726930262130,-1045.610299,0.00015931,2]
[338830587,1726930262139,-200.43089,0.00015931,2]
[338830588,1726930262149,-151.0,0.00015931,2]
[338830589,1726930262159,-193.422387,0.00015931,2]
[338830590,1726930262169,-200.43089,0.00015931,2]
[338830591,1726930262178,-459.343143,0.00015931,2]
[338830592,1726930262187,-151.0,0.00015931,2]
[338830593,1726930262196,-770.958191,0.00015931,2]
[338830594,1726930262205,-459.343143,0.00015931,2]
[338830595,1726930262215,-151.0,0.00015931,2]
[338830596,1726930262224,-770.958191,0.00015931,2]
[338830597,1726930262233,-500.0,0.00015931,2]
[338830598,1726930262243,-571.719311,0.00015931,2]
[338830599,1726930262253,-372.57,0.00015931,2]
[338830600,1726930262262,-571.719311,0.00015931,2]
[338830601,1726930262272,-1934.204934,0.00015931,2]
[338830602,1726930262281,-1934.204934,0.00015931,2]
[338830603,1726930262290,-2001.061906,0.00015931,2]
[338830604,1726930262300,-2001.061906,0.00015931,2]
[338830605,1726930262308,-566.33,0.00015941,2]
[338830606,1726930262318,-500.0,0.00015941,2]
[338830607,1726930262327,-500.0,0.00015941,2]
[338830608,1726930262336,-500.0,0.00015941,2]
[338830609,1726930262346,-905.74,0.00015941,2]
[338830610,1726930262355,-500.0,0.00015941,2]
[338830611,1726930262364,-500.0,0.00015941,2]
[338830612,1726930262374,-500.0,0.00015941,2]
[338830613,1726930262383,-258.59,0.00015941,2]
[338830614,1726930262393,-500.0,0.00015941,2]
[338830615,1726930262402,-500.0,0.00015941,2]
[338830616,1726930262412,-500.0,0.00015941,2]
[338830617,1726930262421,-500.0,0.00015941,2]
[338830618,1726930262431,-500.0,0.00015941,2]
[338830619,1726930262440,-524.54,0.00015941,2]
[338830620,1726930262450,-13265.25,0.00015941,2]
[338830621,1726930262459,-559.83,0.00015941,2]
[338830622,1726930262469,-2064.47,0.00015941,2]
[338830623,1726930262478,-500.0,0.00015941,2]
[338830624,1726930262487,-500.0,0.00015941,2]
[338830625,1726930262496,-500.0,0.00015942,2]
[338830626,1726930262505,-741.52,0.00015942,2]
[338830627,1726930262515,-500.0,0.00015942,2]
[338830628,1726930262525,-500.0,0.00015942,2]
[338830629,1726930262535,-500.0,0.00015942,2]
[338830630,1726930262544,-500.0,0.00015942,2]
[338830631,1726930262554,-500.0,0.00015942,2]
[338830632,1726930262563,-350.54262105,0.00015942,2]
[338830633,1726930262572,-1190.54,0.00015942,2]
[338830634,1726930262583,-578.76,0.00015942,2]
[338830635,1726930262593,-500.0,0.00015942,2]
[338830636,1726930262602,-500.0,0.00015942,2]
[338830637,1726930262612,-500.0,0.00015942,2]
[338830638,1726930262621,-500.0,0.00015942,2]
[338830639,1726930262631,-654.78,0.00015942,2]
[338830640,1726930262640,-1000.0,0.00015942,2]
[338830641,1726930262649,-188.20230846,0.00015942,2]
[338830642,1726930262659,-1000.0,0.00015942,2]
[338830643,1726930262668,-500.0,0.00015942,2]
[338830644,1726930262677,-500.0,0.00015942,2]
[338830645,1726930262687,-257.472639,0.00015984,2]
[338830646,1726930262696,-837.45124,0.00015984,2]
[338830647,1726930262705,-257.472639,0.00015984,2]
[338830648,1726930262714,-418.72562,0.00015984,2]
[338830649,1726930262723,-257.47264,0.00015984,2]
[338830650,1726930262733,-514.945279,0.00015984,2]
[338830651,1726930262743,-837.45124,0.00015984,2]
[338830652,1726930262751,-483.65753051,0.00016,2]
[338830653,1726930262761,-3000.0,0.00016,2]
[338830654,1726930262769,-1000.0,0.00016,2]
[338830655,1726930262779,-3000.0,0.0001601,2]
[338830656,1726930262789,-151.0,0.0001601,2]
[338830657,1726930262798,-151.0,0.0001601,2]
[338830658,1726930262919,-151.0,0.0001601,2]
[338830659,1726930262929,-3000.0,0.0001602,2]
[338830660,1726930262938,-3000.0,0.0001603,2]
[338830661,1726930262947,-3000.0,0.0001604,2]
[338830662,1726930262957,-1091.8436057,0.00016044,2]
[338830663,1726930262967,-3000.0,0.0001605,2]
[338830664,1726930262977,-3000.0,0.0001606,2]
[338830665,1726930262988,-3000.0,0.0001607,2]
[338830666,1726930262998,-3000.0,0.0001608,2]
[338830667,1726930263009,-3000.0,0.0001609,2]
[338830668,1726930263019,-3000.0,0.000161,2]
[338830669,1726930263029,-3000.0,0.0001611,2]
[338830670,1726930263039,-3000.0,0.0001612,2]
[338830671,1726930263050,-3000.0,0.0001613,2]
[338830672,1726930263059,-3000.0,0.0001614,2]
[338830673,1726930263069,-3000.0,0.0001615,2]
[338830674,1726930263078,-3000.0,0.0001616,2]
[338830675,1726930263088,-500.0,0.00016164,2]
[338830676,1726930263097,-3000.0,0.0001617,2]
[338830677,1726930263106,-257.472639,0.00016177,2]
[338830678,1726930263115,-837.45124,0.00016177,2]
[338830679,1726930263125,-257.472639,0.00016177,2]
[338830680,1726930263134,-418.72562,0.00016177,2]
[338830681,1726930263144,-257.47264,0.00016177,2]
[338830682,1726930263153,-514.945279,0.00016177,2]
[338830683,1726930263162,-837.45124,0.00016177,2]
[338830684,1726930263172,-3000.0,0.0001618,2]
[338830685,1726930263182,-3000.0,0.0001619,2]
[338830686,1726930263191,-154.164153,0.000162,2]
[338830687,1726930263200,-3000.0,0.000162,2]
[338830688,1726930263209,-310.955504,0.00016205,2]
[338830689,1726930263219,-530.91,0.00016205,2]
[338830690,1726930263231,-500.0,0.00016205,2]
[338830691,1726930263240,-500.0,0.00016205,2]
[338830692,1726930263250,-500.0,0.00016205,2]
[338830693,1726930263260,-500.0,0.00016205,2]
[338830694,1726930263269,-500.0,0.00016205,2]
[338830695,1726930263280,-500.0,0.00016205,2]
[338830696,1726930263289,-500.0,0.00016205,2]
[338830697,1726930263298,-500.0,0.00016205,2]
[338830698,1726930263307,-500.0,0.00016205,2]
[338830699,1726930263317,-500.0,0.00016205,2]
[338830700,1726930263327,-500.0,0.00016205,2]
[338830701,1726930263336,-500.0,0.00016205,2]
[338830702,1726930263345,-500.0,0.00016205,2]
[338830703,1726930263354,-402.1663439,0.00016205,2]
[338830704,1726930263363,-500.0,0.00016205,2]
[338830705,1726930263374,-200.0,0.00016205,2]
[338830706,1726930263384,-500.0,0.00016205,2]
[338830707,1726930263394,-500.0,0.00016205,2]
[338830708,1726930263403,-370.42511759,0.00016205,2]
[338830709,1726930263412,-627.47,0.00016205,2]
[338830710,1726930263422,-500.0,0.00016205,2]
[338830711,1726930263432,-813.69,0.00016205,2]
[338830712,1726930263441,-500.0,0.00016205,2]
[338830713,1726930263451,-500.0,0.00016205,2]
[338830714,1726930263460,-581.93,0.00016205,2]
[338830715,1726930263469,-607.72,0.00016205,2]
[338830716,1726930263479,-626.31,0.00016205,2]
[338830717,1726930263489,-500.0,0.00016205,2]
[338830718,1726930263498,-500.0,0.00016205,2]
[338830719,1726930263508,-999.91,0.00016205,2]
[338830720,1726930263517,-500.0,0.00016205,2]
[338830721,1726930263529,-500.0,0.00016205,2]
[338830722,1726930263542,-569.52,0.00016205,2]
[338830723,1726930263552,-529.76,0.00016205,2]
[338830724,1726930263561,-500.0,0.00016205,2]
[338830725,1726930263571,-500.0,0.00016205,2]
[338830726,1726930263583,-3000.0,0.0001621,2]
[338830727,1726930263593,-566.33,0.00016215,2]
[338830728,1726930263602,-500.0,0.00016215,2]
[338830729,1726930263612,-500.0,0.00016215,2]
[338830730,1726930263622,-500.0,0.00016215,2]
[338830731,1726930263632,-905.74,0.00016215,2]
[338830732,1726930263641,-500.0,0.00016215,2]
[338830733,1726930263651,-500.0,0.00016215,2]
[338830734,1726930263662,-500.0,0.00016215,2]
[338830735,1726930263673,-500.0,0.00016215,2]
[338830736,1726930263684,-500.0,0.00016215,2]
[338830737,1726930263694,-263.39067922,0.00016215,2]
[338830738,1726930263704,-500.0,0.00016215,2]
[338830739,1726930263713,-500.0,0.00016215,2]
[338830740,1726930263725,-524.54,0.00016215,2]
[338830741,1726930263735,-13265.25,0.00016215,2]
[338830742,1726930263746,-559.83,0.00016215,2]
[338830743,1726930263756,-2064.47,0.00016215,2]
[338830744,1726930263765,-500.0,0.00016215,2]
[338830745,1726930263777,-500.0,0.00016215,2]
[338830746,1726930263787,-158.75893172,0.00016216,2]
[338830747,1726930263797,-741.52,0.00016216,2]
[338830748,1726930263808,-500.0,0.00016216,2]
[338830749,1726930263818,-500.0,0.00016216,2]
[338830750,1726930263828,-500.0,0.00016216,2]
[338830751,1726930263839,-500.0,0.00016216,2]
[338830752,1726930263849,-500.0,0.00016216,2]
[338830753,1726930263859,-1190.54,0.00016216,2]
[338830754,1726930263869,-578.76,0.00016216,2]
[338830755,1726930263878,-500.0,0.00016216,2]
[338830756,1726930263888,-500.0,0.00016216,2]
[338830757,1726930263898,-500.0,0.00016216,2]
[338830758,1726930263909,-500.0,0.00016216,2]
[338830759,1726930263919,-654.78,0.00016216,2]
[338830760,1726930263929,-3000.0,0.0001622,2]
[338830761,1726930263939,-3000.0,0.0001623,2]
[338830762,1726930263949,-500.0,0.00016235,2]
[338830763,1726930263958,-3000.0,0.0001624,2]
[338830764,1726930263967,-3000.0,0.0001625,2]
[338830765,1726930263977,-3000.0,0.0001626,2]
[338830766,1726930263987,-5003.604931,0.0001627,2]
[338830767,1726930263997,-150.0,0.00016314,2]
[338830768,1726930264007,-524.0,0.00016314,2]
[338830769,1726930264017,-1216.0,0.00016314,2]
[338830770,1726930264028,-150.0,0.00016314,2]
[338830771,1726930264037,-383.9,0.00016438,2]
[338830772,1726930264047,-200.0,0.00016438,2]
[338830773,1726930264056,-200.0,0.00016438,2]
[338830774,1726930264066,-200.0,0.00016438,2]
[338830775,1726930264076,-200.0,0.00016438,2]
[338830776,1726930264086,-200.0,0.00016438,2]
[338830777,1726930264095,-200.0,0.00016438,2]
[338830778,1726930264104,-200.0,0.00016438,2]
[338830779,1726930264114,-200.0,0.00016438,2]
[338830780,1726930264124,-200.0,0.00016438,2]
[338830781,1726930264134,-500.0,0.00016479,2]
[338830782,1726930264145,-500.0,0.00016479,2]
[338830783,1726930264155,-500.0,0.00016479,2]
[338830784,1726930264166,-222.54978767,0.00016479,2]
[338830785,1726930264175,-500.0,0.00016479,2]
[338830786,1726930264185,-500.0,0.00016479,2]
[338830787,1726930264194,-159.79670019,0.00016479,2]
[338830788,1726930264205,-500.0,0.00016479,2]
[338830789,1726930264216,-500.0,0.00016479,2]
[338830790,1726930264227,-503.80585493,0.00016479,2]
[338830791,1726930264238,-169.20417275,0.00016479,2]
[338830792,1726930264248,-555.28750883,0.00016479,2]
[338830793,1726930264258,-500.0,0.00016479,2]
[338830794,1726930264269,-200.0,0.00016479,2]
[338830795,1726930264280,-500.0,0.00016479,2]
[338830796,1726930264291,-500.0,0.00016479,2]
[338830797,1726930264301,-500.0,0.00016479,2]
[338830798,1726930264311,-813.69,0.00016479,2]
[338830799,1726930264320,-500.0,0.00016479,2]
[338830800,1726930264330,-500.0,0.00016479,2]
[338830801,1726930264340,-581.93,0.00016479,2]
[338830802,1726930264355,-607.72,0.00016479,2]
[338830803,1726930264373,-626.31,0.00016479,2]
[338830804,1726930264387,-500.0,0.00016479,2]
[338830805,1726930264397,-500.0,0.00016479,2]
[338830806,1726930264407,-999.91,0.00016479,2]
[338830807,1726930264417,-509.22,0.00016479,2]
[338830808,1726930264427,-569.52,0.00016479,2]
[338830809,1726930264438,-529.76,0.00016479,2]
[338830810,1726930264448,-500.0,0.00016479,2]
[338830811,1726930264458,-500.0,0.00016479,2]
[338830812,1726930264468,-566.33,0.00016489,2]
[338830813,1726930264478,-517.14369435,0.00016489,2]
[338830814,1726930264488,-500.0,0.00016489,2]
[338830815,1726930264498,-500.0,0.00016489,2]
[338830816,1726930264508,-905.74,0.00016489,2]
[338830817,1726930264518,-500.0,0.00016489,2]
[338830818,1726930264529,-500.0,0.00016489,2]
[338830819,1726930264538,-200.0,0.00016489,2]
[338830820,1726930264547,-500.0,0.00016489,2]
[338830821,1726930264557,-500.0,0.00016489,2]
[338830822,1726930264566,-500.0,0.00016489,2]
[338830823,1726930264575,-500.0,0.00016489,2]
[338830824,1726930264588,-572.65261625,0.00016489,2]
[338830825,1726930264597,-524.54,0.00016489,2]
[338830826,1726930264607,-13265.25,0.00016489,2]
[338830827,1726930264617,-559.83,0.00016489,2]
[338830828,1726930264627,-2064.47,0.00016489,2]
[338830829,1726930264637,-500.0,0.00016489,2]
[338830830,1726930264646,-500.0,0.00016489,2]
[338830831,1726930264655,-741.52,0.0001649,2]
[338830832,1726930264665,-500.0,0.0001649,2]
[338830833,1726930264675,-500.0,0.0001649,2]
[338830834,1726930264686,-500.0,0.0001649,2]
[338830835,1726930264696,-500.0,0.0001649,2]
[338830836,1726930264706,-1190.54,0.0001649,2]
[338830837,1726930264715,-578.76,0.0001649,2]
[338830838,1726930264725,-500.0,0.0001649,2]
[338830839,1726930264736,-500.0,0.0001649,2]
[338830840,1726930264746,-500.0,0.0001649,2]
[338830841,1726930264755,-500.0,0.0001649,2]
[338830842,1726930264765,-654.78,0.0001649,2]
[338830843,1726930264774,-151.0,0.00016492,2]
[338830844,1726930264784,-151.0,0.00016492,2]
[338830845,1726930264794,-151.0,0.00016492,2]
[338830846,1726930264803,-151.0,0.00016492,2]
[338830847,1726930264813,-347.762489,0.00016492,2]
[338830848,1726930264822,-347.762489,0.00016492,2]
[338830849,1726930264832,-156.658403,0.00016492,2]
[338830850,1726930264841,-734.671699,0.00016492,2]
[338830851,1726930264851,-156.658403,0.00016492,2]
[338830852,1726930264862,-734.671699,0.00016492,2]
[338830853,1726930264871,-508.119185,0.00016492,2]
[338830854,1726930264881,-508.119185,0.00016492,2]
[338830855,1726930264890,-1413.19414,0.00016492,2]
[338830856,1726930264900,-150.112233,0.000165,2]
[338830857,1726930264910,-2000.0,0.000165,2]
[338830858,1726930264922,-500.59493061,0.00016504,2]
[338830859,1726930264932,-1000.0,0.00016531,2]
[338830860,1726930264943,-1000.0,0.00016531,2]
[338830861,1726930264954,-460.43763745,0.00016556,2]
[338830862,1726930264964,-1000.0,0.00016556,2]
[338830863,1726930264973,-610.54952904,0.00016556,2]
[338830864,1726930264982,-196.42918529,0.00016556,2]
[338830865,1726930264992,-500.0,0.00016586,2]
[338830866,1726930265001,-151.01030865,0.00016612,2]
[338830867,1726930265011,-500.0,0.00016753,2]
[338830868,1726930265021,-500.0,0.00016753,2]
[338830869,1726930265031,-500.0,0.00016753,2]
[338830870,1726930265040,-500.0,0.00016753,2]
[338830871,1726930265050,-500.0,0.00016753,2]
[338830872,1726930265059,-398.85,0.00016753,2]
[338830873,1726930265068,-161.49,0.00016753,2]
[338830874,1726930265078,-500.0,0.00016753,2]
[338830875,1726930265087,-200.0,0.00016753,2]
[338830876,1726930265097,-500.0,0.00016753,2]
[338830877,1726930265106,-500.0,0.00016753,2]
[338830878,1726930265115,-813.69,0.00016753,2]
[338830879,1726930265126,-500.0,0.00016753,2]
[338830880,1726930265136,-500.0,0.00016753,2]
[338830881,1726930265145,-581.93,0.00016753,2]
[338830882,1726930265155,-607.72,0.00016753,2]
[338830883,1726930265164,-626.31,0.00016753,2]
[338830884,1726930265173,-500.0,0.00016753,2]
[338830885,1726930265182,-500.0,0.00016753,2]
[338830886,1726930265192,-999.91,0.00016753,2]
[338830887,1726930265201,-569.52,0.00016753,2]
[338830888,1726930265211,-529.76,0.00016753,2]
[338830889,1726930265220,-500.0,0.00016753,2]
[338830890,1726930265229,-151.0,0.00016753,2]
[338830891,1726930265239,-1003.022804,0.00016753,2]
[338830892,1726930265248,-1003.022804,0.00016753,2]
[338830893,1726930265257,-300.0,0.00016754,2]
[338830894,1726930265266,-150.0,0.00016754,2]
[338830895,1726930265275,-3200.0,0.00016754,2]
[338830896,1726930265285,-383.9,0.00016762,2]
[338830897,1726930265294,-566.33,0.00016763,2]
[338830898,1726930265303,-368.67867042,0.00016763,2]
[338830899,1726930265426,-500.0,0.00016763,2]
[338830900,1726930265437,-905.74,0.00016763,2]
[338830901,1726930265447,-500.0,0.00016763,2]
[338830902,1726930265458,-522.78690834,0.00016763,2]
[338830903,1726930265467,-200.0,0.00016763,2]
[338830904,1726930265477,-500.0,0.00016763,2]
[338830905,1726930265488,-500.0,0.00016763,2]
[338830906,1726930265497,-500.0,0.00016763,2]
[338830907,1726930265507,-500.0,0.00016763,2]
[338830908,1726930265517,-524.54,0.00016763,2]
[338830909,1726930265527,-13265.25,0.00016763,2]
[338830910,1726930265538,-559.83,0.00016763,2]
[338830911,1726930265548,-2064.47,0.00016763,2]
[338830912,1726930265558,-500.0,0.00016763,2]
[338830913,1726930265567,-418.7589539,0.00016763,2]
[338830914,1726930265576,-741.52,0.00016764,2]
[338830915,1726930265590,-151.0,0.00016764,2]
[338830916,1726930265599,-151.0,0.00016764,2]
[338830917,1726930265612,-753.201671,0.00016764,2]
[338830918,1726930265623,-151.0,0.00016764,2]
[338830919,1726930265633,-753.201671,0.00016764,2]
[338830920,1726930265642,-153.714099,0.00016764,2]
[338830921,1726930265652,-500.0,0.00016764,2]
[338830922,1726930265662,-153.714099,0.00016764,2]
[338830923,1726930265672,-357.63210228,0.00016764,2]
[338830924,1726930265682,-1489.153759,0.00016764,2]
[338830925,1726930265691,-1489.153759,0.00016764,2]
[338830926,1726930265702,-678.830483,0.00016764,2]
[338830927,1726930265711,-678.830483,0.00016764,2]
[338830928,1726930265720,-233.040417,0.00016764,2]
[338830929,1726930265730,-840.683625,0.00016764,2]
[338830930,1726930265741,-840.683625,0.00016764,2]
[338830931,1726930265751,-500.0,0.00016764,2]
[338830932,1726930265761,-1190.54,0.00016764,2]
[338830933,1726930265770,-578.76,0.00016764,2]
[338830934,1726930265781,-500.0,0.00016764,2]
[338830935,1726930265790,-500.0,0.00016764,2]
[338830936,1726930265800,-500.0,0.00016764,2]
[338830937,1726930265810,-500.0,0.00016764,2]
[338830938,1726930265820,-654.78,0.00016764,2]
[338830939,1726930265830,-587.0,0.0001682,2]
[338830940,1726930265841,-643.59218028,0.00016846,2]
[338830941,1726930265850,-150.112233,0.000169,2]
[338830942,1726930265859,-2000.0,0.00017,2]
[338830943,1726930265869,-1000.0,0.00017,2]
[338830944,1726930265880,-500.0,0.00017027,2]
[338830945,1726930265889,-500.0,0.00017027,2]
[338830946,1726930265899,-500.0,0.00017027,2]
[338830947,1726930265909,-200.0,0.00017027,2]
[338830948,1726930265919,-500.0,0.00017027,2]
[338830949,1726930265928,-500.0,0.00017027,2]
[338830950,1726930265939,-813.69,0.00017027,2]
[338830951,1726930265949,-500.0,0.00017027,2]
[338830952,1726930265958,-500.0,0.00017027,2]
[338830953,1726930265967,-581.93,0.00017027,2]
[338830954,1726930265976,-607.72,0.00017027,2]
[338830955,1726930265986,-626.31,0.00017027,2]
[338830956,1726930265995,-622.87416654,0.00017027,2]
[338830957,1726930266005,-554.715286,0.00017027,2]